bitfinex-derivatives/quotes_BNBF0:USTF0_20250709
["timestamp","ask_amount","ask_price","bid_price","bid_amount"]
[1752054313654,0.99021909,660.33,659.78,2.25958444]
[1752054313853,1.70087405,660.22,659.89,1.70400444]
[1752054315756,1.70087405,660.23,659.89,1.70400444]
[1752054318963,1.70087405,660.28,659.81,1.70400444]
[1752054319160,1.70087405,660.25,659.76,0.26362039]
[1752054319360,1.70087405,660.22,659.76,0.26362039]
[1752054319966,1.70087405,660.21,659.76,0.26362039]
[1752054320266,1.70087405,660.22,659.76,0.26362039]
[1752054321362,1.70087405,660.23,659.76,0.26362039]
[1752054323569,1.70087405,660.24,659.76,0.26362039]
[1752054327571,1.70087405,660.23,659.76,0.26362039]
[1752054328469,1.70087405,660.22,659.76,0.26362039]
[1752054328674,1.70087405,660.21,659.76,0.26362039]
[1752054329870,1.70087405,660.2,659.76,0.26362039]
[1752054330376,1.70087405,660.21,659.76,0.26362039]
[1752054330970,1.70087405,660.2,659.76,0.26362039]
[1752054333473,1.70087405,660.19,659.76,0.26362039]
[1752054343991,1.70087405,660.21,659.76,0.26362039]
[1752054348576,1.70087405,660.3,659.76,0.26362039]
[1752054358386,1.70087405,660.26,659.76,0.26362039]
[1752054358886,1.70087405,660.25,659.76,0.26362039]
[1752054364695,1.70087405,660.24,659.76,0.26362039]
[1752054365295,1.70087405,660.23,659.76,0.26362039]
[1752054366797,1.70087405,660.22,659.76,0.26362039]
[1752054369597,1.70087405,660.21,659.76,0.26362039]
[1752054370097,1.70087405,660.21,659.76,1.96762483]
[1752054371499,1.70087405,660.2,659.77,1.70400444]
[1752054372102,1.70087405,660.22,659.76,0.26362039]
[1752054372303,1.70087405,660.19,659.78,1.70400444]
[1752054372901,1.70087405,660.19,659.79,1.70400444]
[1752054375403,1.70087405,660.18,659.8,1.70400444]
[1752054376404,1.70087405,660.19,659.78,1.70400444]
[1752054377303,1.70087405,660.19,659.79,1.70400444]
[1752054377902,1.70087405,660.19,659.78,1.70400444]
[1752054378202,1.70087405,660.18,659.79,1.70400444]
[1752054381807,1.70087405,660.17,659.8,1.70400444]
[1752054382604,0.98911698,660.28,659.76,0.26362039]
[1752054382805,1.70062442,660.17,659.8,1.70347434]
[1752054383209,1.70062442,660.18,659.79,1.70347434]
[1752054386412,1.70062442,660.17,659.81,1.70347434]
[1752054389214,1.70062442,660.19,659.78,1.70347434]
[1752054389418,1.70062442,660.2,659.77,1.70347434]
[1752054389614,1.70062442,660.2,659.76,1.96709473]
[1752054392320,1.70062442,660.21,659.76,0.26362039]
[1752054393022,1.70062442,660.22,659.76,0.26362039]
[1752054395225,1.70062442,660.21,659.76,0.26362039]
[1752054399124,1.70062442,660.2,659.76,0.26362039]
[1752054399330,1.70062442,660.2,659.76,1.96709473]
[1752054402227,1.70062442,660.19,659.77,1.70347434]
[1752054402831,1.70062442,660.17,659.8,1.70347434]
[1752054403732,1.70062442,660.17,659.81,1.70347434]
[1752054404132,1.70062442,660.17,659.8,1.70347434]
[1752054404332,1.70089487,660.17,659.8,1.70382038]
[1752054407329,1.70089487,660.17,659.81,1.70382038]
[1752054408234,1.70089487,660.16,659.81,1.70382038]
[1752054409632,1.70089487,660.22,659.76,0.26362039]
[1752054409833,1.70089487,660.23,659.76,0.26362039]
[1752054412534,1.70089487,660.27,659.77,1.70382038]
[1752054413339,1.70089487,660.28,659.76,1.96744077]
[1752054415340,1.70089487,660.29,659.76,0.26362039]
[1752054418440,1.70089487,660.29,659.76,1.96744077]
[1752054419248,1.70089487,660.29,659.76,0.26362039]
[1752054419445,1.70089487,660.27,659.79,1.70382038]
[1752054419644,1.70089487,660.26,659.79,1.70382038]
[1752054420346,1.70089487,660.26,659.8,1.70382038]
[1752054420641,5.62347751,661.14,659.8,1.70382038]
[1752054420642,1.70089487,660.25,659.8,1.70382038]
[1752054421240,1.70089487,660.25,659.81,1.70382038]
[1752054422242,1.70089487,660.26,659.8,1.70382038]
[1752054423749,1.70089487,660.26,659.81,1.70382038]
[1752054424456,1.70089487,660.26,659.8,1.70382038]
[1752054425251,1.70089487,660.26,659.79,1.70382038]
[1752054426348,1.70089487,660.27,659.79,1.70382038]
[1752054427545,1.70089487,660.27,659.76,0.26362039]
[1752054427546,1.70089487,660.27,659.78,1.70382038]
[1752054429251,1.70089487,660.26,659.79,1.70382038]
[1752054430149,0.98930069,660.39,659.76,0.26362039]
[1752054430447,1.699039,660.26,659.79,1.7023802]
[1752054430656,1.699039,660.26,659.76,0.26362039]
[1752054430657,1.699039,660.26,659.8,1.7023802]
[1752054434655,1.699039,660.26,659.81,1.7023802]
[1752054435056,1.699039,660.25,659.82,1.7023802]
[1752054437558,1.699039,660.23,659.85,1.7023802]
[1752054438264,1.699039,660.24,659.83,1.7023802]
[1752054441758,1.699039,660.25,659.82,1.7023802]
[1752054444371,1.699039,660.26,659.8,1.7023802]
[1752054445572,1.699039,660.26,659.81,1.7023802]
[1752054446267,1.699039,660.26,659.8,1.7023802]
[1752054446570,1.699039,660.26,659.81,1.7023802]
[1752054447975,1.699039,660.25,659.81,1.7023802]
[1752054448177,1.699039,660.31,659.65,1.7023802]
[1752054448373,1.699039,660.31,659.69,0.26363636]
[1752054452578,1.699039,660.3,659.69,0.26363636]
[1752054455477,1.699039,660.31,659.69,0.26363636]
[1752054457884,1.699039,660.26,659.72,1.7023802]
[1752054459684,1.699039,660.26,659.69,0.26363636]
[1752054459685,1.699039,660.23,659.78,1.7023802]
[1752054459882,1.699039,660.27,659.82,1.7023802]
[1752054460486,1.699039,660.28,659.82,1.7023802]
[1752054460887,1.699039,660.27,659.83,1.7023802]
[1752054461488,1.699039,660.27,659.7,2.26984026]
[1752054461489,1.699039,660.26,659.85,1.7023802]
[1752054461689,1.699039,660.26,659.69,0.26363636]
[1752054461690,1.699039,660.26,659.84,1.7023802]
[1752054462489,1.699039,660.25,659.87,1.7023802]
[1752054462789,2.26538533,660.36,659.69,0.26363636]
[1752054462790,1.699039,660.27,659.9,1.7023802]
[1752054463090,1.699039,660.28,659.9,1.7023802]
[1752054463484,1.699039,660.28,659.89,1.7023802]
[1752054463885,1.699039,660.29,659.89,1.7023802]
[1752054464487,1.699039,660.29,659.88,1.7023802]
[1752054464691,1.699039,660.3,659.87,1.7023802]
[1752054464892,1.699039,660.29,659.88,1.7023802]
[1752054465592,1.699039,660.3,659.87,1.7023802]
[1752054466488,1.699039,660.29,659.88,1.7023802]
[1752054467895,1.699039,660.29,659.69,0.26363636]
[1752054467896,1.699039,660.3,659.87,1.7023802]
[1752054468293,1.699039,660.33,659.83,1.7023802]
[1752054469698,1.699039,660.33,659.82,1.7023802]
[1752054474401,1.699039,660.34,659.82,1.7023802]
[1752054475201,1.699039,660.34,659.81,1.7023802]
[1752054477800,1.699039,660.34,659.82,1.7023802]
[1752054478201,1.699039,660.32,659.84,1.7023802]
[1752054479299,1.699039,660.32,659.85,1.7023802]
[1752054479600,1.699039,660.32,659.69,0.26363636]
[1752054479601,1.699039,660.31,659.86,1.7023802]
[1752054480199,1.699039,660.3,659.87,1.7023802]
[1752054481697,1.699039,660.33,659.84,1.7023802]
[1752054483904,1.699039,660.32,659.84,1.7023802]
[1752054484703,1.699039,660.32,659.85,1.7023802]
[1752054486404,1.699039,660.32,659.84,1.7023802]
[1752054488509,1.699039,660.32,659.85,1.7023802]
[1752054489103,1.699039,660.32,659.84,1.7023802]
[1752054489409,0.98903675,660.44,659.83,1.7023802]
[1752054489410,1.699039,660.33,659.83,1.7023802]
[1752054491508,1.699039,660.32,659.85,1.7023802]
[1752054492312,0.98903675,660.43,659.73,2.26984026]
[1752054492613,0.98903675,660.55,659.69,0.26363636]
[1752054492817,0.98903675,661.05,659.69,0.26363636]
[1752054493017,2.67112132,661.04,659.69,0.26363636]
[1752054493314,2.26430317,660.44,659.73,2.26838384]
[1752054493813,2.26430317,660.44,659.69,0.26363636]
[1752054494114,1.4214266,660.56,659.69,0.26363636]
[1752054494313,2.67109585,661.05,659.69,0.26363636]
[1752054494517,2.67109585,661.04,659.69,0.26363636]
[1752054494817,2.67109585,661.03,659.69,0.26363636]
[1752054495015,1.69815193,660.32,659.86,1.70125612]
[1752054496114,1.69815193,660.31,659.86,1.70125612]
[1752054498522,1.69815193,660.32,659.85,1.70125612]
[1752054499021,1.69815193,660.31,659.87,1.70125612]
[1752054499216,1.69815193,660.31,659.75,2.26834149]
[1752054499217,1.69815193,660.31,659.86,1.70125612]
[1752054499617,1.69815193,660.31,659.87,1.70125612]
[1752054500219,1.69815193,660.31,659.86,1.70125612]
[1752054500723,1.69815193,660.31,659.87,1.70125612]
[1752054502820,1.69815193,660.32,659.86,1.70125612]
[1752054503223,1.69815193,660.32,659.85,1.70125612]
[1752054508129,1.69815193,660.4,659.73,1.70125612]
[1752054511329,1.69815193,660.39,659.74,1.70125612]
[1752054512626,1.69815193,660.4,659.75,1.70125612]
[1752054515332,1.69815193,660.39,659.76,1.70125612]
[1752054517529,1.69815193,660.38,659.76,1.70125612]
[1752054517933,1.69815193,660.33,659.84,1.70125612]
[1752054518135,1.69815193,660.3,659.89,1.70125612]
[1752054518333,1.69815193,660.29,659.9,1.70125612]
[1752054520131,1.69815193,660.3,659.89,1.70125612]
[1752054520833,1.69815193,660.29,659.89,1.70125612]
[1752054522434,1.69815193,660.29,659.9,1.70125612]
[1752054523736,1.69815193,660.28,659.92,1.70125612]
[1752054523936,1.69815193,660.28,659.91,1.70125612]
[1752054529536,1.69815193,660.32,659.94,1.70125612]
[1752054529739,1.69815193,660.31,659.95,1.70125612]
[1752054529941,1.69815193,660.3,659.96,1.70125612]
[1752054530341,1.69815193,660.31,659.96,1.70125612]
[1752054531338,1.69815193,660.31,659.95,1.70125612]
[1752054533341,1.69815193,660.32,659.95,1.70125612]
[1752054533742,1.69815193,660.31,659.95,1.70125612]
[1752054534445,1.69815193,660.32,659.95,1.70125612]
[1752054537447,1.69815193,660.32,659.94,1.70125612]
[1752054538644,1.69815193,660.32,659.95,1.70125612]
[1752054539648,1.69815193,660.32,659.94,1.70125612]
[1752054539949,1.69815193,660.35,659.91,1.70125612]
[1752054540746,1.69815193,660.34,659.91,1.70125612]
[1752054540949,1.69815193,660.35,659.91,1.70125612]
[1752054541546,1.69815193,660.36,659.89,1.70125612]
[1752054546151,1.69815193,660.36,659.75,2.26834149]
[1752054546152,1.69815193,660.35,659.92,1.70125612]
[1752054548250,1.69815193,660.35,659.91,1.70125612]
[1752054548752,1.69815193,660.36,659.9,1.70125612]
[1752054551552,1.69815193,660.34,659.92,1.70125612]
[1752054552656,1.69815193,660.35,659.92,1.70125612]
[1752054553557,1.69815193,660.34,659.93,1.70125612]
[1752054554254,1.69815193,660.34,659.94,1.70125612]
[1752054554954,1.69815193,660.35,659.93,1.70125612]
[1752054555155,1.70078534,660.35,659.93,1.7021373]
[1752054561664,1.70078534,660.36,659.91,1.7021373]
[1752054561863,1.70078534,660.34,659.95,1.7021373]
[1752054563864,1.70078534,660.38,659.97,1.7021373]
[1752054564069,1.70078534,660.39,659.98,1.7021373]
[1752054564365,1.70078534,660.4,659.99,1.7021373]
[1752054564864,1.70078534,660.41,659.97,1.7021373]
[1752054565265,1.70078534,660.4,659.99,1.7021373]
[1752054565765,3.25486391,660.51,659.99,1.7021373]
[1752054565766,1.70078534,660.39,659.99,1.7021373]
[1752054566468,1.70078534,660.4,659.98,1.7021373]
[1752054567565,1.70078534,660.46,660.04,1.7021373]
[1752054568471,1.70078534,660.46,660.03,1.7021373]
[1752054570372,1.70078534,660.46,660.04,1.7021373]
[1752054570574,1.70078534,660.46,660.03,1.7021373]
[1752054570873,1.70078534,660.46,660.04,1.7021373]
[1752054571374,1.70078534,660.46,660.03,1.7021373]
[1752054571575,0.99010465,660.56,659.92,2.26834149]
[1752054571776,1.69959487,660.47,660.02,1.70044183]
[1752054573474,1.69959487,660.48,660.02,1.70044183]
[1752054574974,1.69959487,660.48,660.01,1.70044183]
[1752054575374,1.69959487,660.49,660.01,1.70044183]
[1752054576478,1.69959487,660.49,660.0,1.70044183]
[1752054580277,1.69959487,660.5,660.0,1.70044183]
[1752054580875,1.69959487,660.53,660.04,1.70044183]
[1752054581376,1.69959487,660.52,660.05,1.70044183]
[1752054582482,1.69959487,660.53,660.05,1.70044183]
[1752054586475,1.69959487,660.53,660.04,1.70044183]
[1752054587276,1.69959487,660.53,660.05,1.70044183]
[1752054587481,1.69959487,660.54,660.04,1.70044183]
[1752054591582,1.69959487,660.54,660.03,1.70044183]
[1752054593585,1.69959487,660.55,660.03,1.70044183]
[1752054594190,1.69959487,660.54,660.03,1.70044183]
[1752054594385,1.69959487,660.55,660.03,1.70044183]
[1752054594590,1.69959487,660.54,660.03,1.70044183]
[1752054595486,1.69959487,660.55,660.03,1.70044183]
[1752054596088,1.69959487,660.55,660.02,1.70044183]
[1752054597289,1.69959487,660.56,660.02,1.70044183]
[1752054597783,1.69959487,660.57,660.0,1.70044183]
[1752054598890,1.69959487,660.61,659.93,1.70044183]
[1752054599391,1.69959487,660.61,659.94,1.70044183]
[1752054604590,1.69959487,660.61,659.76,1.70044183]
[1752054604894,1.69959487,660.58,659.72,1.70044183]
[1752054606490,1.69959487,660.57,659.72,1.70044183]
[1752054607291,1.69959487,660.57,659.74,1.70044183]
[1752054607594,1.69959487,660.56,659.74,1.70044183]
[1752054609397,1.69959487,660.56,659.75,1.70044183]
[1752054609595,1.69959487,660.51,659.82,1.70044183]
[1752054611894,1.69959487,660.5,659.83,1.70044183]
[1752054612490,1.69959487,660.5,659.82,1.70044183]
[1752054612792,1.69959487,660.51,659.82,1.70044183]
[1752054613295,1.69959487,660.5,659.83,1.70044183]
[1752054613893,1.69959487,660.44,659.92,1.70044183]
[1752054614297,1.69823326,660.44,659.92,1.69940004]
[1752054615399,1.69823326,660.43,659.92,1.69940004]
[1752054616498,1.69823326,660.57,659.71,1.69940004]
[1752054618298,1.69823326,660.57,659.72,1.69940004]
[1752054620098,1.42090196,660.8,659.69,0.26363636]
[1752054620302,1.69861258,660.57,659.72,1.69978076]
[1752054621299,1.69861258,660.56,659.72,1.69978076]
[1752054626202,2.26420258,660.67,659.83,1.69998886]
[1752054626503,1.69885563,660.49,659.83,1.69998886]
[1752054629206,1.69885563,660.49,659.82,1.69998886]
[1752054630106,1.69885563,660.42,659.93,1.69998886]
[1752054633012,1.69885563,660.43,659.93,1.69998886]
[1752054633208,0.98884753,660.53,659.93,1.69998886]
[1752054633209,1.69885563,660.42,659.93,1.69998886]
[1752054633709,1.69885563,660.42,659.94,1.69998886]
[1752054634413,1.69885563,660.42,659.93,1.69998886]
[1752054635014,1.69885563,660.41,659.95,1.69998886]
[1752054635315,1.69885563,660.41,659.94,1.69998886]
[1752054635513,1.69885563,660.41,659.95,1.69998886]
[1752054636414,1.69885563,660.41,659.94,1.69998886]
[1752054636620,1.69885563,660.41,659.95,1.69998886]
[1752054637909,1.69885563,660.41,659.94,1.69998886]
[1752054638111,1.69885563,660.41,659.95,1.69998886]
[1752054640417,1.69885563,660.41,659.94,1.69998886]
[1752054641418,1.69885563,660.41,659.95,1.69998886]
[1752054642320,1.69885563,660.42,659.94,1.69998886]
[1752054645216,1.69885563,660.41,659.94,1.69998886]
[1752054645817,1.69885563,660.42,659.93,1.69998886]
[1752054648022,1.69877685,660.42,659.93,1.69991613]
[1752054649426,1.69877685,660.41,659.92,1.69991613]
[1752054649625,1.69877685,660.42,659.91,1.69991613]
[1752054651028,1.69877685,660.43,659.9,1.69991613]
[1752054653025,1.69877685,660.44,659.91,1.69991613]
[1752054653526,1.69877685,660.43,659.91,1.69991613]
[1752054653925,1.69877685,660.44,659.92,1.69991613]
[1752054654430,1.69877685,660.44,659.75,0.26357646]
[1752054654431,1.69877685,660.44,659.91,1.69991613]
[1752054655531,1.69877685,660.44,659.92,1.69991613]
[1752054656732,1.69877685,660.43,659.91,1.69991613]
[1752054656932,1.69877685,660.43,659.92,1.69991613]
[1752054657529,1.69877685,660.42,659.92,1.69991613]
[1752054658731,1.69877685,660.41,659.92,1.69991613]
[1752054659434,1.69877685,660.41,659.93,1.69991613]
[1752054659734,1.69877685,660.4,659.93,1.69991613]
[1752054660729,1.69877685,660.4,659.94,1.69991613]
[1752054660930,1.69877685,660.39,659.95,1.69991613]
[1752054661534,1.69877685,660.38,659.96,1.69991613]
[1752054662428,1.69877685,660.37,659.96,1.69991613]
[1752054662830,1.69877685,660.38,659.97,1.69991613]
[1752054663036,1.69877685,660.37,659.96,1.69991613]
[1752054663535,1.69877685,660.36,659.97,1.69991613]
[1752054664031,1.69877685,660.39,659.93,1.69991613]
[1752054664235,1.69877685,660.36,659.94,1.69991613]
[1752054665035,1.69877685,660.36,659.95,1.69991613]
[1752054673837,1.69877685,660.34,659.98,1.69991613]
[1752054674042,1.69877685,660.34,659.75,0.26357646]
[1752054674043,1.69877685,660.33,660.0,1.69991613]
[1752054674243,1.69877685,660.33,659.99,1.69991613]
[1752054676039,1.69877685,660.36,659.96,1.69991613]
[1752054676339,1.69877685,660.36,659.95,1.69991613]
[1752054680040,0.99116946,660.49,659.94,1.69991613]
[1752054680041,1.69877685,660.37,659.94,1.69991613]
[1752054682242,1.69877685,660.37,659.95,1.69991613]
[1752054683946,1.69877685,660.38,659.94,1.69991613]
[1752054684144,1.69877685,660.37,659.94,1.69991613]
[1752054685348,1.69877685,660.36,659.93,1.69991613]
[1752054685648,1.69877685,660.39,659.91,1.69991613]
[1752054686347,1.69877685,660.39,659.9,1.69991613]
[1752054689246,1.69877685,660.4,659.9,1.69991613]
[1752054689847,1.69877685,660.39,659.91,1.69991613]
[1752054695553,1.69877685,660.36,659.96,1.69991613]
[1752054697553,1.69877685,660.34,659.98,1.69991613]
[1752054698450,1.69877685,660.35,659.97,1.69991613]
[1752054698953,1.69877685,660.35,659.75,0.26357646]
[1752054698954,1.69877685,660.34,659.98,1.69991613]
[1752054699851,1.69877685,660.33,659.98,1.69991613]
[1752054700055,1.69877685,660.33,659.99,1.69991613]
[1752054700953,1.69877685,660.32,659.99,1.69991613]
[1752054702357,1.69877685,660.33,660.0,1.69991613]
[1752054702953,1.69877685,660.39,659.89,1.69991613]
[1752054707365,1.69877685,660.4,659.89,1.69991613]
[1752054707560,1.69877685,660.37,659.85,1.69991613]
[1752054708260,1.69877685,660.38,659.85,1.69991613]
[1752054708464,1.69877685,660.37,659.85,1.69991613]
[1752054709262,1.69877685,660.38,659.85,1.69991613]
[1752054712861,1.69877685,660.35,659.9,1.69991613]
[1752054713362,1.69877685,660.35,659.89,1.69991613]
[1752054714262,1.69877685,660.35,659.9,1.69991613]
[1752054717361,0.99104303,660.49,659.75,2.53191795]
[1752054717362,1.69877685,660.32,659.94,1.69991613]
[1752054719564,1.69877685,660.31,659.96,1.69991613]
[1752054722365,1.69877685,660.3,659.96,1.69991613]
[1752054723164,1.69877685,660.31,659.96,1.69991613]
[1752054724564,1.69877685,660.33,659.93,1.69991613]
[1752054724968,1.69877685,660.33,659.92,1.69991613]
[1752054725268,1.69877685,660.36,659.88,1.69991613]
[1752054726168,1.69877685,660.32,659.84,1.69991613]
[1752054726364,1.69877685,660.33,659.84,1.69991613]
[1752054728267,1.69877685,660.34,659.83,1.69991613]
[1752054728670,1.69877685,660.33,659.83,1.69991613]
[1752054729271,1.69877685,660.34,659.83,1.69991613]
[1752054731972,0.99101681,660.48,659.75,0.26357646]
[1752054731973,1.69877685,660.35,659.82,1.69991613]
[1752054733974,1.69877685,660.33,659.8,1.69991613]
[1752054734674,1.69877685,660.31,659.83,1.69991613]
[1752054737274,1.69877685,660.31,659.82,1.69991613]
[1752054737675,1.69877685,660.31,659.83,1.69991613]
[1752054737879,1.69877685,660.3,659.82,1.69991613]
[1752054738172,1.69877685,660.31,659.82,1.69991613]
[1752054738872,1.69877685,660.33,659.79,1.69991613]
[1752054739373,1.69877685,660.34,659.79,1.69991613]
[1752054739676,1.69877685,660.33,659.79,1.69991613]
[1752054740078,1.69877685,660.34,659.78,1.69991613]
[1752054741074,1.69877685,660.35,659.76,1.69991613]
[1752054741479,1.69877685,660.35,659.77,1.69991613]
[1752054741773,1.69877685,660.33,659.77,1.69991613]
[1752054741978,1.69877685,660.34,659.78,1.69991613]
[1752054744176,1.69877685,660.34,659.77,1.69991613]
[1752054745479,1.69877685,660.34,659.78,1.69991613]
[1752054745681,1.69877685,660.35,659.78,1.69991613]
[1752054748288,1.69877685,660.33,659.8,1.69991613]
[1752054748784,1.69877685,660.34,659.8,1.69991613]
[1752054748988,1.69877685,660.33,659.8,1.69991613]
[1752054749485,1.69877685,660.33,659.79,1.69991613]
[1752054749988,1.69877685,660.32,659.81,1.69991613]
[1752054750988,1.69877685,660.3,659.83,1.69991613]
[1752054751389,1.69877685,660.3,659.84,1.69991613]
[1752054752185,1.69877685,660.3,659.85,1.69991613]
[1752054753188,1.69877685,660.3,659.75,0.26357646]
[1752054753189,1.69877685,660.3,659.86,1.69991613]
[1752054753390,1.69877685,660.29,659.86,1.69991613]
[1752054753785,1.69877685,660.29,659.87,1.69991613]
[1752054754187,1.69877685,660.29,659.86,1.69991613]
[1752054754593,1.69877685,660.3,659.84,1.69991613]
[1752054755391,1.69877685,660.3,659.83,1.69991613]
[1752054755589,1.69877685,660.3,659.84,1.69991613]
[1752054755886,1.69877685,660.33,659.79,1.69991613]
[1752054762297,1.69877685,660.33,659.8,1.69991613]
[1752054762696,1.69877685,660.32,659.8,1.69991613]
[1752054765496,1.69877685,660.3,659.83,1.69991613]
[1752054765799,1.69877685,660.32,659.84,1.69991613]
[1752054766197,1.69877685,660.31,659.84,1.69991613]
[1752054766901,1.69877685,660.31,659.83,1.69991613]
[1752054767202,1.69877685,660.3,659.83,1.69991613]
[1752054767398,1.69877685,660.31,659.82,1.69991613]
[1752054768101,1.69877685,660.32,659.81,1.69991613]
[1752054768499,1.69877685,660.31,659.8,1.69991613]
[1752054768699,1.69877685,660.32,659.81,1.69991613]
[1752054768901,1.69877685,660.32,659.8,1.69991613]
[1752054769298,1.69877685,660.32,659.75,0.26357646]
[1752054769299,1.69877685,660.32,659.81,1.69991613]
[1752054769502,1.69877685,660.32,659.8,1.69991613]
[1752054770405,1.69877685,660.33,659.77,1.69991613]
[1752054770605,1.69877685,660.34,659.78,1.69991613]
[1752054772205,1.69877685,660.33,659.78,1.69991613]
[1752054772607,1.69877685,660.34,659.77,1.69991613]
[1752054773005,1.69877685,660.34,659.78,1.69991613]
[1752054773809,1.69877685,660.33,659.78,1.69991613]
[1752054774010,1.69877685,660.34,659.77,1.69991613]
[1752054774206,1.69877685,660.34,659.78,1.69991613]
[1752054776312,1.69877685,660.33,659.8,1.69991613]
[1752054777009,1.69877685,660.34,659.79,1.69991613]
[1752054777613,1.69877685,660.34,659.8,1.69991613]
[1752054778413,1.69877685,660.33,659.79,1.69991613]
[1752054778908,1.69877685,660.33,659.8,1.69991613]
[1752054779514,1.69877685,660.32,659.82,1.69991613]
[1752054781309,1.69877685,660.31,659.82,1.69991613]
[1752054782312,1.69877685,660.31,659.83,1.69991613]
[1752054782512,1.69877685,660.3,659.84,1.69991613]
[1752054783715,1.69877685,660.3,659.82,1.69991613]
[1752054783915,1.69877685,660.29,659.83,1.69991613]
[1752054784415,1.69877685,660.29,659.84,1.69991613]
[1752054785315,1.69877685,660.28,659.84,1.69991613]
[1752054785516,1.69877685,660.28,659.85,1.69991613]
[1752054786814,1.69877685,660.26,659.87,1.69991613]
[1752054787214,1.69877685,660.27,659.88,1.69991613]
[1752054787818,1.69877685,660.28,659.86,1.69991613]
[1752054789418,1.69877685,660.28,659.87,1.69991613]
[1752054789616,1.69877685,660.27,659.87,1.69991613]
[1752054790616,1.69877685,660.28,659.86,1.69991613]
[1752054793525,1.69877685,660.27,659.87,1.69991613]
[1752054793723,1.69877685,660.27,659.88,1.69991613]
[1752054794223,1.69877685,660.27,659.87,1.69991613]
[1752054794922,1.69877685,660.28,659.88,1.69991613]
[1752054795224,1.69877685,660.27,659.88,1.69991613]
[1752054795421,1.69877685,660.27,659.87,1.69991613]
[1752054796924,1.69877685,660.27,659.88,1.69991613]
[1752054797824,0.99045242,660.39,659.89,1.69991613]
[1752054797825,1.69877685,660.26,659.89,1.69991613]
[1752054799821,0.99045242,660.38,659.87,1.69991613]
[1752054799822,1.69877685,660.28,659.87,1.69991613]
[1752054800421,1.69877685,660.27,659.87,1.69991613]
[1752054801622,1.69877685,660.27,659.88,1.69991613]
[1752054802228,1.69877685,660.29,659.85,1.69991613]
[1752054802528,1.69877685,660.3,659.84,1.69991613]
[1752054803026,1.69877685,660.29,659.84,1.69991613]
[1752054807025,1.69877685,660.3,659.84,1.69991613]
[1752054809532,1.69877685,660.29,659.85,1.69991613]
[1752054812028,1.69877685,660.27,659.87,1.69991613]
[1752054812332,1.69877685,660.26,659.89,1.69991613]
[1752054812627,1.69877685,660.27,659.89,1.69991613]
[1752054812829,1.69877685,660.27,659.9,1.69991613]
[1752054814036,1.69877685,660.26,659.9,1.69991613]
[1752054814534,1.69877685,660.28,659.87,1.69991613]
[1752054816641,1.69877685,660.29,659.87,1.69991613]
[1752054816835,1.69877685,660.28,659.87,1.69991613]
[1752054819143,1.69877685,660.29,659.87,1.69991613]
[1752054820442,1.69877685,660.29,659.75,0.26357646]
[1752054820443,1.69877685,660.29,659.86,1.69991613]
[1752054822144,1.69877685,660.3,659.85,1.69991613]
[1752054822344,1.69877685,660.29,659.86,1.69991613]
[1752054824441,1.69877685,660.28,659.87,1.69991613]
[1752054824645,1.69877685,660.28,659.88,1.69991613]
[1752054825446,1.69877685,660.28,659.87,1.69991613]
[1752054825643,1.69877685,660.28,659.88,1.69991613]
[1752054826444,1.69877685,660.27,659.89,1.69991613]
[1752054826648,1.69877685,660.27,659.9,1.69991613]
[1752054827044,1.69877685,660.26,659.9,1.69991613]
[1752054833454,1.69877685,660.26,659.89,1.69991613]
[1752054834763,1.69877685,660.27,659.89,1.69991613]
[1752054836165,1.69877685,660.26,659.9,1.69991613]
[1752054836964,1.69877685,660.26,659.91,1.69991613]
[1752054837860,1.69877685,660.25,659.91,1.69991613]
[1752054838160,1.69877685,660.26,659.9,1.69991613]
[1752054839761,1.69877685,660.26,659.89,1.69991613]
[1752054839961,1.69877685,660.3,659.84,1.69991613]
[1752054841167,1.69877685,660.3,659.83,1.69991613]
[1752054841864,1.69877685,660.3,659.84,1.69991613]
[1752054842667,1.69877685,660.31,659.83,1.69991613]
[1752054844465,1.69877685,660.3,659.83,1.69991613]
[1752054847968,1.69877685,660.3,659.84,1.69991613]
[1752054850170,1.69877685,660.27,659.89,1.69991613]
[1752054850969,1.70333348,660.27,659.89,1.70371148]
[1752054852371,0.99157009,660.39,659.75,0.26357646]
[1752054852575,2.67822054,661.04,659.75,0.26357646]
[1752054852873,2.67822268,661.03,659.75,0.26357646]
[1752054853071,2.67822268,661.02,659.75,0.26357646]
[1752054853274,2.67822268,661.01,659.75,0.26357646]
[1752054853475,2.67822268,661.0,659.75,0.26357646]
[1752054853677,2.67822268,660.99,659.75,0.26357646]
[1752054853877,2.67822268,660.98,659.75,0.26357646]
[1752054854074,2.67822268,660.97,659.75,0.26357646]
[1752054854275,2.67822268,660.96,659.75,0.26357646]
[1752054854474,2.67822268,660.95,659.75,0.26357646]
[1752054854680,1.7033563,660.24,659.93,1.70373346]
[1752054855580,1.7033563,660.24,659.92,1.70373346]
[1752054856676,1.7033563,660.24,659.93,1.70373346]
[1752054856982,1.7033563,660.25,659.92,1.70373346]
[1752054857277,1.7033563,660.24,659.92,1.70373346]
[1752054857480,1.7033563,660.25,659.92,1.70373346]
[1752054861286,1.7033563,660.28,659.87,1.70373346]
[1752054863886,1.7033563,660.27,659.87,1.70373346]
[1752054864389,1.7033563,660.28,659.87,1.70373346]